bitfinex-derivatives/quotes_SOLF0:USTF0_20250914
["timestamp","ask_amount","ask_price","bid_price","bid_amount"]
[1757828080562,6.65,246.7,246.58,3.40330302]
[1757828080764,6.65,246.74,246.62,6.44]
[1757828081062,6.65,246.74,246.62,9.84330302]
[1757828084156,6.65,246.74,246.63,3.40330302]
[1757828084361,6.65,246.74,246.65,0.83234309]
[1757828086059,12.16,246.9,246.68,0.83234309]
[1757828086264,12.85672827,246.91,246.63,3.40330302]
[1757828086265,0.83234309,246.87,246.74,0.83234309]
[1757828086465,106.19,246.86,246.74,0.83234309]
[1757828088669,6.65,246.86,246.74,0.83234309]
[1757828088967,106.17,246.86,246.74,0.83234309]
[1757828089467,106.17,246.86,246.75,6.44]
[1757828089869,106.17,246.86,246.75,9.84330302]
[1757828090466,106.17,246.86,246.76,3.40330302]
[1757828090972,106.17,246.86,246.75,9.84330302]
[1757828092471,106.17,246.86,246.76,3.40330302]
[1757828094265,106.17,246.86,246.77,3.40330302]
[1757828094677,107.00234309,246.86,246.77,3.40330302]
[1757828097268,107.00234309,246.86,246.78,3.40330302]
[1757828097475,106.17,246.86,246.78,3.40330302]
[1757828099370,6.65,246.86,246.78,3.40330302]
[1757828099572,6.65,246.86,246.79,3.40330302]
[1757828102575,6.65,246.86,246.8,6.84]
[1757828102785,6.65,246.86,246.8,10.24330302]
[1757828105386,7.70234309,246.9,246.83,3.40330302]
[1757828105588,99.3,246.89,246.83,3.40330302]
[1757828106187,99.3,246.89,246.82,10.24330302]
[1757828107992,99.3,246.89,246.83,3.40330302]
[1757828108585,99.3,246.89,246.85,6.84]
[1757828109193,99.3,246.89,246.87,6.84]
[1757828109395,6.87,246.93,246.86,4.23564611]
[1757828109591,6.87,246.93,246.86,11.07564611]
[1757828109993,0.83234309,246.95,246.89,6.84]
[1757828110191,272.36,246.96,246.89,6.84]
[1757828113393,6.87,246.95,246.89,6.84]
[1757828113693,6.87,246.95,246.87,0.83234309]
[1757828113889,6.87,246.93,246.85,10.24330302]
[1757828114297,6.87,246.93,246.85,6.84]
[1757828114695,0.83234309,246.91,246.85,6.84]
[1757828116000,0.83234309,246.88,246.83,3.40330302]
[1757828116194,6.87,246.87,246.82,3.40330302]
[1757828116498,7.70234309,246.88,246.81,3.40330302]
[1757828116695,0.83234309,246.85,246.82,3.40330302]
[1757828116901,7.70234309,246.85,246.82,3.40330302]
[1757828117099,7.70234309,246.85,246.8,10.24330302]
[1757828117502,6.87,246.85,246.8,10.24330302]
[1757828117701,7.70234309,246.85,246.8,10.24330302]
[1757828117901,6.87,246.84,246.8,10.24330302]
[1757828118104,6.87,246.84,246.8,6.84]
[1757828121004,0.83234309,246.86,246.79,3.40330302]
[1757828121200,0.83234309,246.86,246.79,10.24330302]
[1757828122402,0.83234309,246.86,246.8,3.40330302]
[1757828123599,0.83234309,246.87,246.8,3.40330302]
[1757828125303,7.70234309,246.88,246.82,3.40330302]
[1757828128204,7.70234309,246.88,246.83,3.40330302]
[1757828128205,0.83234309,246.88,246.83,3.40330302]
[1757828128504,6.6,246.87,246.83,3.40330302]
[1757828128705,6.6,246.87,246.83,9.99330302]
[1757828129406,7.30234309,246.89,246.85,6.72]
[1757828129595,7.30234309,246.89,246.85,3.40330302]
[1757828129800,7.30234309,246.89,246.86,10.12330302]
[1757828130002,6.47,246.89,246.86,10.12330302]
[1757828130400,6.47,246.89,246.87,3.40330302]
[1757828131605,6.47,246.91,246.87,10.12330302]
[1757828132509,12.26561178,247.03,246.87,10.12330302]
[1757828132510,0.83234309,247.03,246.91,6.72]
[1757828132703,6.47,247.02,246.94,6.72]
[1757828133907,7.30234309,247.02,246.94,6.72]
[1757828136707,6.47,246.98,246.94,6.72]
[1757828137207,6.47,246.98,246.92,10.11964233]
[1757828137401,99.1,247.05,246.92,10.11964233]
[1757828137402,0.83234309,246.96,246.92,3.39964233]
[1757828137603,0.83234309,246.96,246.9,3.39964233]
[1757828137807,7.30234309,246.96,246.9,3.39964233]
[1757828143311,0.83234309,246.93,246.88,10.11964233]
[1757828143610,6.47,246.92,246.89,3.39964233]
[1757828143810,6.47,246.92,246.89,10.11964233]
[1757828144012,6.47,246.92,246.89,6.72]
[1757828145615,0.83234309,246.93,246.89,6.72]
[1757828145816,0.83234309,246.93,246.88,3.39964233]
[1757828146013,0.83234309,246.93,246.89,6.72]
[1757828146413,6.47,246.96,246.9,6.72]
[1757828148423,1.29850858,247.01,246.92,3.39964233]
[1757828148719,7.76850858,247.01,246.93,10.11964233]
[1757828153819,6.47,247.01,246.95,3.39964233]
[1757828154215,6.47,247.01,246.95,9.99964233]
[1757828154816,99.16,247.04,246.95,9.99964233]
[1757828155518,99.16,247.04,246.96,3.39964233]
[1757828155822,6.4,247.03,246.95,9.99964233]
[1757828157319,6.4,247.03,246.95,6.6]
[1757828158821,6.4,247.03,246.95,9.99964233]
[1757828159129,100.43850858,247.07,246.97,6.98]
[1757828159425,107.28850858,247.07,246.97,6.98]
[1757828161426,105.99,247.07,246.97,6.98]
[1757828161621,105.99,247.07,246.87,1.29850858]
[1757828161622,105.99,247.07,246.98,10.37964233]
[1757828161818,105.99,247.07,246.99,6.98]
[1757828163326,99.14,247.07,246.99,10.37964233]
[1757828163526,6.85,247.07,247.03,6.98]
[1757828163830,6.85,247.07,247.04,6.98]
[1757828164127,99.1,247.11,247.03,10.37964233]
[1757828166033,8.14850858,247.12,247.03,10.37964233]
[1757828166232,8.14850858,247.12,247.04,3.39964233]
[1757828166526,8.14850858,247.12,247.03,10.37964233]
[1757828167430,8.14850858,247.12,247.03,6.98]
[1757828168926,6.85,247.12,247.03,6.98]
[1757828169527,6.85,247.09,247.01,3.39964233]
[1757828170231,6.85,247.09,247.01,6.98]
[1757828170525,6.85,247.09,247.02,6.98]
[1757828171133,30.28850858,247.13,247.02,6.98]
[1757828171526,30.28850858,247.13,247.03,6.98]
[1757828173331,28.99,247.13,247.03,6.98]
[1757828177034,8.14850858,247.13,247.03,6.98]
[1757828178734,6.85,247.13,247.03,6.98]
[1757828178934,6.85,247.13,247.04,6.98]
[1757828180038,6.85,247.13,247.05,10.37964233]
[1757828180234,6.85,247.13,247.05,6.98]
[1757828182636,6.85,247.13,247.02,3.39964233]
[1757828182827,1.29850858,247.08,247.01,3.39964233]
[1757828183028,6.85,247.07,246.99,3.39964233]
[1757828183234,6.85,247.07,246.98,6.98]
[1757828183235,1.29850858,247.08,247.02,3.39964233]
[1757828183536,1.29850858,247.08,246.98,11.51162648]
[1757828183537,6.85,247.07,246.98,10.37964233]
[1757828184637,6.85,247.07,246.99,3.39964233]
[1757828185329,6.85,247.07,246.98,6.98]
[1757828185527,6.85,247.07,246.99,3.38714643]
[1757828186940,6.85,247.07,246.97,3.38714643]
[1757828187332,6.85,247.07,246.98,3.38714643]
[1757828187832,6.84,247.03,246.96,3.38714643]
[1757828188038,6.84,247.03,246.94,6.98]
[1757828188039,6.84,247.03,246.95,3.38714643]
[1757828192239,6.84,247.03,246.96,3.38714643]
[1757828192442,6.84,247.03,246.95,3.38714643]
[1757828192742,6.84,247.03,246.88,12.05815197]
[1757828192743,6.84,247.03,246.97,10.04714643]
[1757828193041,6.84,247.07,246.98,10.04714643]
[1757828193441,6.84,247.07,246.99,3.38714643]
[1757828194738,6.84,247.15,247.01,3.38714643]
[1757828194944,8.13850858,247.15,247.04,3.38714643]
[1757828195251,8.13850858,247.15,247.02,10.04714643]
[1757828195252,6.84,247.14,247.02,10.04714643]
[1757828195646,1.29850858,247.15,247.02,10.04714643]
[1757828196344,45.42,247.14,247.02,10.04714643]
[1757828196548,6.84,247.12,247.02,10.04714643]
[1757828197955,6.84,247.12,247.04,3.38714643]
[1757828198252,6.84,247.12,247.06,3.38714643]
[1757828199348,6.84,247.26,247.09,3.38714643]
[1757828199552,6.84,247.21,247.12,3.38714643]
[1757828199951,6.84,247.21,247.13,3.38714643]
[1757828200354,6.84,247.21,247.1,11.19162648]
[1757828200554,6.84,247.21,247.14,3.39483452]
[1757828201252,6.84,247.21,247.13,10.05483452]
[1757828201756,6.84,247.21,247.13,3.39483452]
[1757828204163,6.84,247.21,247.12,3.39483452]
[1757828204358,6.84,247.21,247.13,3.39483452]
[1757828205154,6.84,247.21,247.12,3.39483452]
[1757828206452,0.82956275,247.17,247.12,3.39483452]
[1757828206759,0.82956275,247.22,247.16,3.39116462]
[1757828206960,6.84,247.21,247.14,3.39116462]
[1757828207153,0.82956275,247.19,247.13,10.05116462]
[1757828207351,7.66956275,247.19,247.13,10.05116462]
[1757828207858,6.84,247.19,247.13,10.05116462]
[1757828208065,7.66956275,247.19,247.13,10.05116462]
[1757828210055,7.66956275,247.19,247.12,3.39116462]
[1757828210860,7.66956275,247.19,247.11,3.39116462]
[1757828211254,6.84,247.19,247.11,3.39116462]
[1757828211455,7.66956275,247.19,247.11,3.39116462]
[1757828213556,7.66956275,247.19,247.12,6.6]
[1757828213861,0.82956275,247.19,247.12,6.6]
[1757828214164,36.0,247.22,247.15,3.39116462]
[1757828214359,6.45,247.25,247.18,6.6]
[1757828214567,371.72,247.27,247.18,6.6]
[1757828214960,271.94,247.27,247.18,6.6]
[1757828215464,271.94,247.27,247.18,7.42956275]
[1757828215758,271.94,247.27,247.18,6.6]
[1757828215964,0.82956275,247.25,247.18,6.6]
[1757828216365,6.45,247.26,247.18,6.6]
[1757828217358,272.76956275,247.27,247.18,6.6]
[1757828218154,271.94,247.27,247.18,6.6]
[1757828218759,0.82956275,247.33,247.21,6.78]
[1757828218962,23.40956275,247.33,247.21,6.78]
[1757828219769,6.95,247.32,247.21,6.78]
[1757828220165,6.95,247.29,247.21,6.78]
[1757828220370,0.82956275,247.27,247.21,6.78]
[1757828220864,0.82956275,247.27,247.16,10.17116462]
[1757828221063,6.95,247.26,247.16,10.17116462]
[1757828221263,7.77956275,247.26,247.16,10.17116462]
[1757828221460,0.82956275,247.23,247.16,10.17116462]
[1757828221667,0.82956275,247.21,247.16,6.78]
[1757828221964,0.82956275,247.21,247.14,10.17116462]
[1757828222561,0.82956275,247.21,247.15,6.78]
[1757828223668,6.95,247.23,247.11,3.39116462]
[1757828223669,0.82956275,247.17,247.11,3.39116462]
[1757828224260,0.82956275,247.18,247.11,3.39116462]
[1757828224666,22.74,247.22,247.12,10.17116462]
[1757828224967,0.82956275,247.21,247.12,10.17116462]
[1757828225670,0.82956275,247.21,247.13,3.39116462]
[1757828227170,0.82956275,247.21,247.12,11.00072737]
[1757828227773,6.95,247.23,247.12,10.17116462]
[1757828228073,0.82956275,247.23,247.13,6.78]
[1757828229177,0.82956275,247.23,247.13,10.17116462]
[1757828229374,0.82956275,247.24,247.14,6.78]
[1757828229677,0.82956275,247.21,247.14,6.78]
[1757828235885,0.82956275,247.18,247.12,3.39116462]
[1757828236083,0.82956275,247.18,247.1,3.39116462]
[1757828236585,0.82956275,247.15,247.11,6.78]
[1757828236787,0.82956275,247.15,247.1,3.39116462]
[1757828236984,0.82956275,247.15,247.11,6.78]
[1757828237279,7.77956275,247.15,247.1,3.39116462]
[1757828237484,6.95,247.14,247.09,3.39116462]
[1757828237684,6.95,247.14,247.1,6.78]
[1757828238186,6.95,247.14,247.1,10.17116462]
[1757828238488,6.95,247.14,247.1,3.39116462]
[1757828238684,0.82956275,247.12,247.09,3.39116462]
[1757828238883,6.95,247.11,247.09,3.39116462]
[1757828239089,6.95,247.34,247.11,6.78]
[1757828239292,6.95,247.34,247.28,0.82956275]
[1757828239482,12.12997206,247.42,247.26,3.38264328]
[1757828239483,0.82956275,247.46,247.31,0.82956275]
[1757828239685,12.0800229,247.5,247.4,0.82956275]
[1757828239886,6.95,247.49,247.4,3.37700553]
[1757828240090,12.0800229,247.5,247.44,0.82956275]
[1757828240285,6.95,247.53,247.47,0.82956275]
[1757828240685,6.95,247.53,247.5,3.37700553]
[1757828240888,24.83,247.53,247.49,3.37700553]
[1757828241185,6.95,247.62,247.5,10.13237321]
[1757828241387,6.95,247.62,247.55,0.82956275]
[1757828241690,101.86,247.61,247.51,0.82956275]
[1757828241989,101.86,247.61,247.46,6.78]
[1757828241990,108.83,247.6,247.49,4.18193596]
[1757828242182,101.9,247.59,247.54,0.82956275]
[1757828242383,373.72,247.63,247.5,10.13237321]
[1757828242587,271.8,247.63,247.54,3.35237321]
[1757828242887,101.94,247.62,247.54,6.78]
[1757828243684,6.95,247.61,247.49,8.93229449]
[1757828244088,6.95,247.61,247.49,12.2846677]
[1757828244285,6.95,247.61,247.5,3.35237321]
[1757828244487,101.92,247.61,247.5,3.35237321]
[1757828244691,101.92,247.61,247.49,2.15229449]
[1757828244692,101.92,247.61,247.51,6.78]
[1757828244990,6.95,247.6,247.44,3.35237321]
[1757828245191,6.95,247.6,247.41,6.78]
[1757828245589,6.95,247.6,247.45,10.13237321]
[1757828246090,6.95,247.6,247.49,12.2846677]
[1757828246292,6.95,247.6,247.49,8.93229449]
[1757828247089,102.26,247.62,247.49,12.2846677]
[1757828247295,102.26,247.62,247.49,8.93229449]
[1757828247493,271.8,247.63,247.5,10.13237321]
[1757828247697,374.08,247.63,247.5,6.78]
[1757828247996,102.26,247.62,247.5,10.13237321]
[1757828248191,102.26,247.62,247.5,6.78]
[1757828248891,271.8,247.63,247.54,2.15229449]
[1757828249089,374.02,247.63,247.54,8.83229449]
[1757828250085,102.16,247.62,247.54,8.83229449]
[1757828250689,271.8,247.63,247.54,8.83229449]
[1757828251289,373.92,247.63,247.54,8.83229449]
[1757828251494,271.8,247.63,247.54,8.83229449]
[1757828251797,102.08,247.67,247.6,6.68]
[1757828252297,102.12,247.68,247.6,6.68]
[1757828253190,102.12,247.68,247.59,2.15229449]
[1757828253698,102.06,247.67,247.59,2.15229449]
[1757828254292,6.81,247.66,247.55,2.15229449]
[1757828254689,6.81,247.79,247.61,2.15229449]
[1757828254895,13.27,247.79,247.72,2.15229449]
[1757828255098,13.27,247.79,247.66,6.68]
[1757828255099,13.27,247.79,247.7,2.15229449]
[1757828255293,13.27,247.79,247.68,2.15229449]
[1757828255498,13.27,247.79,247.66,6.68]
[1757828256293,13.27,247.79,247.63,2.15229449]
[1757828256704,6.81,247.74,247.61,6.68]
[1757828258203,10.48,247.73,247.61,6.68]
[1757828258500,6.81,247.71,247.51,6.68]
[1757828258700,8.08,247.7,247.52,6.68]
[1757828259007,15.14,247.69,247.52,6.68]
[1757828259206,18.98,247.68,247.52,6.68]
[1757828259398,26.87,247.67,247.52,6.68]
[1757828259599,6.81,247.67,247.52,6.68]
[1757828259997,7.18,247.66,247.52,6.68]
[1757828260795,6.81,247.67,247.52,6.68]
[1757828261002,13.52,247.65,247.52,6.68]
[1757828261305,6.81,247.67,247.52,6.68]
[1757828262306,6.76,247.67,247.52,6.68]
[1757828262507,6.81,247.73,247.52,6.68]
[1757828262809,7.38,247.72,247.55,6.68]
[1757828263106,6.81,247.73,247.55,6.68]
[1757828263309,20.53,247.73,247.55,6.68]
[1757828263501,26.55,247.73,247.55,6.68]
[1757828263903,28.70229449,247.73,247.55,6.68]
[1757828264102,8.96229449,247.73,247.55,6.68]
[1757828264305,6.81,247.73,247.55,6.68]
[1757828264806,6.7,247.76,247.6,6.68]
[1757828265000,6.81,247.8,247.6,6.68]
[1757828265206,6.81,247.78,247.6,6.68]
[1757828265601,84.84,247.77,247.6,6.68]
[1757828266007,6.81,247.78,247.6,6.68]
[1757828266212,102.36,247.77,247.6,6.68]
[1757828266908,102.38,247.76,247.6,6.68]
[1757828268413,6.81,247.78,247.6,6.68]
[1757828268614,6.81,247.76,247.6,6.68]
[1757828268816,102.28,247.75,247.6,6.68]
[1757828269617,6.81,247.76,247.6,6.68]
[1757828270117,55.7,247.8,247.6,6.68]
[1757828270310,6.81,247.83,247.6,6.68]
[1757828270508,6.81,247.83,247.62,6.68]
[1757828270807,6.81,247.83,247.64,6.68]
[1757828272217,6.81,247.81,247.64,6.68]
[1757828272816,16.51,247.81,247.64,6.68]
[1757828273512,6.81,247.81,247.64,6.68]
[1757828274517,6.81,247.81,247.65,6.87]
[1757828280213,3.39367698,247.82,247.57,44.74]
[1757828280214,3.39367698,247.82,247.57,6.89]
[1757828280419,3.39367698,247.82,247.57,38.9489745]
[1757828280623,6.48,247.81,247.56,3.35237321]
[1757828280920,6.48,247.81,247.57,6.89]
[1757828281322,6.48,247.81,247.58,6.89]
[1757828281620,6.48,247.79,247.59,6.89]
[1757828282210,6.48,247.77,247.61,3.35237321]
[1757828282416,6.48,247.77,247.62,6.89]
[1757828283216,28.56,247.76,247.64,3.35237321]
[1757828283416,28.56,247.76,247.65,3.35237321]
[1757828284224,6.48,247.75,247.68,3.35237321]
[1757828284522,6.48,247.75,247.65,3.35237321]
[1757828284924,6.48,247.75,247.67,3.35237321]
[1757828285317,24.84,247.75,247.69,3.35237321]
[1757828285517,6.48,247.75,247.69,3.35237321]
[1757828285723,24.82,247.75,247.69,3.35237321]
[1757828286323,6.48,247.75,247.68,3.35237321]
[1757828286621,6.48,247.75,247.62,6.89]
[1757828286622,6.48,247.73,247.69,3.35237321]
[1757828286821,6.48,247.73,247.7,3.35237321]
[1757828287028,6.48,247.75,247.7,3.35237321]
[1757828287216,6.48,247.74,247.7,3.35237321]
[1757828287623,6.48,247.75,247.7,3.35237321]
[1757828288316,21.33367698,247.76,247.7,3.35237321]
[1757828288521,21.33367698,247.76,247.72,3.35237321]
[1757828288716,6.48,247.75,247.71,3.35237321]
[1757828288921,6.48,247.75,247.68,4.51019104]
[1757828288922,6.48,247.75,247.72,3.35237321]
[1757828289118,21.33367698,247.76,247.72,3.35237321]
[1757828289322,6.48,247.75,247.72,3.35237321]
[1757828289521,21.33367698,247.76,247.72,3.35237321]
[1757828289722,6.48,247.75,247.72,3.35237321]
[1757828290320,6.48,247.75,247.74,3.35237321]
[1757828290523,21.33367698,247.76,247.73,3.35237321]
[1757828290728,6.48,247.75,247.73,3.35237321]
[1757828290932,21.33367698,247.76,247.73,3.35237321]
[1757828291125,6.48,247.75,247.74,3.35237321]
[1757828291331,44.36,247.75,247.74,3.35237321]
[1757828291531,44.36,247.75,247.62,6.89]
[1757828291532,6.48,247.74,247.73,3.35237321]
[1757828292127,6.48,247.74,247.71,3.35237321]
[1757828292328,6.48,247.74,247.72,3.35237321]
[1757828292725,37.88,247.75,247.72,3.35237321]
[1757828292922,47.86,247.75,247.72,3.35237321]
[1757828293329,6.48,247.74,247.72,3.35237321]
[1757828293529,47.86,247.75,247.7,4.51019104]
[1757828293723,47.86,247.75,247.73,3.3571495]
[1757828294329,6.48,247.74,247.73,3.3571495]
[1757828295230,6.48,247.74,247.71,4.51019104]
[1757828295432,63.04,247.75,247.71,4.51019104]
[1757828295632,69.3,247.75,247.71,4.51019104]
[1757828295832,69.54340288,247.88,247.73,4.51019104]
[1757828295833,77.16,247.77,247.73,4.51019104]
[1757828296033,3.39367698,247.81,247.76,4.51019104]
[1757828296235,6.48,247.8,247.77,4.51019104]
[1757828296431,69.54340288,247.88,247.78,4.51019104]
[1757828296432,101.94,247.83,247.78,4.51019104]
[1757828296628,6.48,247.83,247.82,3.35682142]
[1757828297426,101.94,247.84,247.81,3.35682142]
[1757828298027,6.48,247.82,247.81,3.35682142]
[1757828298434,6.88,247.82,247.81,3.35682142]
[1757828298636,0.4,247.82,247.8,3.35682142]
[1757828298831,6.48,247.81,247.8,3.35682142]
[1757828299539,108.74,247.81,247.8,3.35682142]
[1757828300038,6.88,247.81,247.8,3.35682142]
[1757828300235,108.3,247.81,247.8,3.35682142]
[1757828300430,6.48,247.81,247.78,4.51019104]
[1757828300631,101.82,247.8,247.78,4.51019104]
[1757828301038,101.78,247.8,247.78,4.51019104]
[1757828301439,6.48,247.86,247.78,4.51019104]
[1757828301642,6.48,247.85,247.83,3.35622676]
[1757828301941,101.76,247.84,247.83,3.35622676]
[1757828302135,6.48,247.85,247.79,4.51019104]
[1757828302337,101.76,247.84,247.79,11.40019104]
[1757828303343,6.48,247.84,247.79,11.40019104]
[1757828303544,101.7,247.83,247.79,11.40019104]
[1757828304140,101.7,247.82,247.79,4.51019104]
[1757828304338,6.48,247.81,247.79,4.51019104]
[1757828304538,101.7,247.82,247.78,4.51019104]
[1757828304734,6.48,247.81,247.78,4.51019104]
[1757828304935,101.7,247.82,247.78,4.51019104]
[1757828305343,6.48,247.81,247.78,4.51019104]
[1757828305743,6.48,247.81,247.27,36.10187996]
[1757828305744,6.48,247.81,247.77,4.51019104]
[1757828306445,101.7,247.82,247.77,4.51019104]
[1757828306642,6.48,247.81,247.77,4.51019104]
[1757828306842,6.48,247.81,247.75,4.51019104]
[1757828307045,9.87367698,247.81,247.74,4.51019104]
[1757828307240,9.87367698,247.81,247.75,4.51019104]
[1757828307441,101.7,247.8,247.75,4.51019104]
[1757828307845,101.7,247.8,247.74,4.51019104]
[1757828308141,101.7,247.8,247.64,9.02546999]
[1757828308142,6.91,247.79,247.73,4.51019104]
[1757828308340,1.29063178,247.74,247.71,4.51019104]
[1757828308535,6.91,247.72,247.71,4.51019104]
[1757828308741,6.91,247.72,247.7,4.51019104]
[1757828308948,8.20063178,247.71,247.69,4.51019104]
[1757828309147,6.91,247.7,247.68,4.51019104]
[1757828309536,6.91,247.7,247.67,4.51019104]
[1757828309742,8.20063178,247.68,247.67,4.51019104]
[1757828310343,8.20063178,247.68,247.66,4.51019104]
[1757828310746,6.91,247.72,247.65,4.51019104]
[1757828310947,1.29063178,247.68,247.65,4.51019104]
[1757828311545,35.0,247.67,247.65,4.51019104]
[1757828311746,35.0,247.67,247.64,4.51019104]
[1757828312643,35.0,247.67,247.63,4.51019104]
[1757828312851,8.20063178,247.64,247.62,4.51019104]
[1757828313051,6.91,247.63,247.62,4.51019104]
[1757828313350,6.91,247.63,247.59,4.51019104]
[1757828313740,6.91,247.63,247.58,4.51019104]
[1757828313941,42.26,247.62,247.58,4.51019104]
[1757828314145,42.26,247.62,247.57,4.51019104]
[1757828314348,42.26,247.62,247.57,6.35]
[1757828314746,49.16,247.67,247.57,6.76528656]
[1757828314950,53.66,247.66,247.58,13.11528656]
[1757828315246,53.66,247.66,247.58,6.35]
[1757828316546,1.29063178,247.7,247.58,6.35]
[1757828316747,8.86,247.69,247.58,13.11528656]
[1757828316949,16.7,247.68,247.58,13.11528656]
[1757828317150,23.82,247.67,247.58,13.11528656]
[1757828318250,1.29063178,247.66,247.58,6.35]
[1757828318455,30.73,247.67,247.58,6.35]
[1757828318844,32.42,247.66,247.58,6.35]
[1757828319154,6.91,247.67,247.58,6.35]
[1757828319354,9.8,247.66,247.58,6.35]
[1757828320554,9.8,247.66,247.55,6.76528656]
[1757828321251,6.91,247.65,247.52,6.76528656]
[1757828321452,6.91,247.65,247.49,6.35]
[1757828321652,10.30700677,247.65,247.49,6.35]
[1757828322054,6.91,247.63,247.49,6.35]
[1757828322553,6.91,247.58,247.49,6.35]
[1757828322758,39.34,247.57,247.49,6.35]
[1757828322959,6.91,247.58,247.49,6.35]
[1757828323154,75.16,247.56,247.49,6.35]
[1757828323353,101.94,247.56,247.49,6.35]
[1757828323558,6.91,247.63,247.49,6.35]
[1757828323759,37.84,247.62,247.49,6.35]
[1757828324862,73.84,247.61,247.49,6.35]
[1757828325358,6.91,247.6,247.49,6.35]
[1757828325760,73.84,247.61,247.43,18.73701847]
[1757828325761,6.91,247.57,247.43,6.35]
[1757828328264,38.18,247.56,247.43,6.35]
[1757828329964,71.78,247.55,247.43,6.35]
[1757828330159,6.91,247.57,247.43,6.35]
[1757828330359,6.77618781,247.85,247.43,6.35]
[1757828330360,6.91,247.69,247.45,6.35]
[1757828330564,6.91,247.69,247.48,6.35]
[1757828330766,6.91,247.69,247.5,6.35]
[1757828331063,271.34,247.78,247.49,6.76528656]
[1757828331064,35.3,247.71,247.53,6.35]
[1757828331366,2.15340361,247.74,247.54,6.35]
[1757828331759,31.64,247.73,247.54,6.35]
[1757828331960,60.74,247.73,247.54,6.35]
[1757828332159,88.38,247.73,247.55,6.35]
[1757828332366,6.91,247.75,247.55,6.35]
[1757828332570,6.91,247.75,247.57,6.35]
[1757828332766,6.91,247.75,247.58,6.35]
[1757828333267,6.91,247.75,247.57,6.76528656]
[1757828333268,6.91,247.75,247.59,6.37]
[1757828335967,6.91,247.75,247.59,6.76528656]
[1757828336270,6.91,247.75,247.59,6.37]
[1757828337764,6.91,247.75,247.59,6.76528656]
[1757828337963,6.91,247.75,247.6,6.6]
[1757828341776,6.45,247.71,247.6,6.6]
[1757828345482,6.45,247.76,247.6,6.6]
[1757828345877,6.45,247.76,247.61,6.6]
[1757828348383,2.15340361,247.79,247.62,6.6]
[1757828349986,6.45,247.78,247.62,6.6]
[1757828350585,2.15340361,247.95,247.64,6.76528656]
[1757828350586,2.15340361,247.82,247.64,6.76528656]
[1757828350885,2.15340361,247.82,247.65,6.6]
[1757828351887,6.45,247.81,247.65,6.6]
[1757828352981,22.53,247.81,247.65,6.6]
[1757828353185,6.45,247.81,247.65,6.6]
[1757828353380,36.43,247.81,247.65,6.6]
[1757828353585,6.45,247.81,247.65,6.6]
[1757828353792,21.15,247.81,247.65,6.6]
[1757828353985,35.11,247.81,247.65,6.6]
[1757828355486,48.31,247.81,247.65,6.6]
[1757828356090,6.45,247.81,247.65,6.6]
[1757828356290,60.83,247.81,247.65,6.6]
[1757828358692,6.45,247.76,247.65,6.6]
[1757828360694,0.82555507,247.72,247.65,6.6]
[1757828366498,6.45,247.76,247.65,6.6]
[1757828366698,0.82555507,247.74,247.65,6.6]
[1757828367998,0.82555507,247.71,247.65,6.6]
[1757828368397,6.45,247.76,247.65,6.6]
[1757828368598,0.82555507,247.73,247.65,6.6]
[1757828368800,6.45,247.76,247.65,6.6]